[Event "Sempre più Rapidamente"]
[Site "Chess.com"]
[Date "2020.04.12"]
[Round "3"]
[White "GuGe14"]
[Black "crippo"]
[Result "1-0"]
[WhiteElo "1855"]
[BlackElo "1547"]
[TimeControl "720+3"]
[EndTime "7:07:28 PDT"]
[Termination "GuGe14 ha vinto per abbandono"]

1. e4 {[%clk 0:12:02.9]} 1... e5 {[%clk 0:12:00.9]} 2. f4 {[%clk 0:12:03.9]}
2... exf4 {[%clk 0:12:02]} 3. Nf3 {[%clk 0:12:05.5]} 3... Be7 {[%clk 0:12:03.5]}
4. Bc4 {[%clk 0:12:06.7]} 4... Bh4+ {[%clk 0:12:05.1]} 5. Kf1 {[%clk 0:12:08.7]}
5... c6 {[%clk 0:12:07.4]} 6. Nc3 {[%clk 0:11:43]} 6... Bg5 {[%clk 0:12:05.2]}
7. Nxg5 {[%clk 0:11:17.7]} 7... Qxg5 {[%clk 0:12:05.9]} 8. d4 {[%clk 0:11:19.3]}
8... Nf6 {[%clk 0:12:03.4]} 9. e5 {[%clk 0:11:12.1]} 9... Ng4 {[%clk 0:12:01.6]}
10. Ne4 {[%clk 0:10:46.8]} 10... Qh4 {[%clk 0:11:49.4]} 11. Nd6+ {[%clk
0:09:16.6]} 11... Ke7 {[%clk 0:11:33.9]} 12. Qf3 {[%clk 0:09:12.5]} 12... g6
{[%clk 0:11:07.3]} 13. Bxf4 {[%clk 0:08:51.6]} 13... b5 {[%clk 0:11:03.1]} 14.
Bg3 {[%clk 0:08:13.9]} 14... Qg5 {[%clk 0:10:59.7]} 15. Qxf7+ {[%clk 0:07:05.5]}
15... Kd8 {[%clk 0:10:58.8]} 16. Bf4 {[%clk 0:05:01.3]} 16... Ne3+ {[%clk
0:10:58.2]} 17. Bxe3 {[%clk 0:05:02.9]} 17... Qxe3 {[%clk 0:10:58.5]} 18. Qf6+
{[%clk 0:04:03.6]} 18... Kc7 {[%clk 0:10:59.4]} 19. Bb3 {[%clk 0:01:54.3]} 19...
Ba6 {[%clk 0:10:41.2]} 20. c3 {[%clk 0:00:58.3]} 20... Qd3+ {[%clk 0:10:24.2]}
21. Ke1 {[%clk 0:00:50.9]} 21... b4 {[%clk 0:10:21.5]} 22. Qf3 {[%clk
0:00:40.8]} 22... bxc3 {[%clk 0:10:04.8]} 23. Qxd3 {[%clk 0:00:40.2]} 23... Bxd3
{[%clk 0:10:05.4]} 24. bxc3 {[%clk 0:00:41.2]} 24... Na6 {[%clk 0:10:06.3]} 25.
Kd2 {[%clk 0:00:38.8]} 25... Bf5 {[%clk 0:09:59.2]} 26. Nxf5 {[%clk 0:00:39.9]}
26... gxf5 {[%clk 0:10:01.2]} 27. Raf1 {[%clk 0:00:41.4]} 27... Rhf8 {[%clk
0:09:59.1]} 28. Rf4 {[%clk 0:00:43.4]} 28... c5 {[%clk 0:09:54.8]} 29. Rhf1
{[%clk 0:00:44.1]} 29... Rab8 {[%clk 0:09:41.6]} 30. Rxf5 {[%clk 0:00:42.8]}
30... Rxf5 {[%clk 0:09:42.8]} 31. Rxf5 {[%clk 0:00:44.5]} 31... c4 {[%clk
0:09:44.8]} 32. Bxc4 {[%clk 0:00:41.6]} 32... Rb6 {[%clk 0:09:33.1]} 33. Rf6
{[%clk 0:00:36.2]} 33... Nb8 {[%clk 0:09:29.8]} 34. Rxb6 {[%clk 0:00:37.6]}
34... axb6 {[%clk 0:09:31.1]} 35. Bd3 {[%clk 0:00:39.2]} 35... Nc6 {[%clk
0:09:32.4]} 36. Bxh7 {[%clk 0:00:40.1]} 36... Ne7 {[%clk 0:09:33.6]} 37. Bc2
{[%clk 0:00:41.6]} 37... Nd5 {[%clk 0:09:35.2]} 38. Bb3 {[%clk 0:00:40.5]} 38...
Nf4 {[%clk 0:09:36.7]} 39. g3 {[%clk 0:00:40.1]} 1-0

[Event "Sempre più Rapidamente"]
[Site "Chess.com"]
[Date "2020.04.12"]
[Round "3"]
[White "lionblu1"]
[Black "ferrariand"]
[Result "1-0"]
[WhiteElo "1478"]
[BlackElo "1585"]
[TimeControl "720+3"]
[EndTime "7:16:23 PDT"]
[Termination "lionblu1 ha vinto per tempo"]

1. d4 {[%clk 0:12:01]} 1... d5 {[%clk 0:12:00.1]} 2. c4 {[%clk 0:12:01.2]} 2...
e6 {[%clk 0:11:58.4]} 3. Nc3 {[%clk 0:12:01.4]} 3... Nf6 {[%clk 0:11:59.3]} 4.
cxd5 {[%clk 0:12:02.7]} 4... exd5 {[%clk 0:11:58.5]} 5. Bg5 {[%clk 0:12:03.4]}
5... Be7 {[%clk 0:11:45.8]} 6. e3 {[%clk 0:12:02.3]} 6... O-O {[%clk 0:11:43.7]}
7. Bd3 {[%clk 0:12:02]} 7... h6 {[%clk 0:11:43.3]} 8. Bh4 {[%clk 0:11:59]} 8...
c6 {[%clk 0:11:22]} 9. Qc2 {[%clk 0:11:59]} 9... Nbd7 {[%clk 0:10:43.3]} 10.
Nge2 {[%clk 0:11:57.6]} 10... Nb6 {[%clk 0:10:30.4]} 11. O-O {[%clk 0:11:26.3]}
11... Ng4 {[%clk 0:09:42.8]} 12. Bg3 {[%clk 0:11:08.8]} 12... Bh4 {[%clk
0:09:31.4]} 13. Bf5 {[%clk 0:10:48.3]} 13... Bxg3 {[%clk 0:09:18.6]} 14. Nxg3
{[%clk 0:10:11.6]} 14... Qh4 {[%clk 0:08:26.1]} 15. h3 {[%clk 0:09:56.6]} 15...
Nxe3 {[%clk 0:07:38.1]} 16. fxe3 {[%clk 0:09:27.5]} 16... Qxg3 {[%clk
0:07:37.1]} 17. Rf3 {[%clk 0:09:26.5]} 17... Bxf5 {[%clk 0:07:10.1]} 18. Qxf5
{[%clk 0:09:18.6]} 18... Qg6 {[%clk 0:07:01.6]} 19. Qe5 {[%clk 0:08:32.6]} 19...
Nc4 {[%clk 0:06:59.2]} 20. Qc7 {[%clk 0:08:12.2]} 20... Nd2 {[%clk 0:06:24.1]}
21. Rg3 {[%clk 0:08:03.8]} 21... Qf6 {[%clk 0:04:56.4]} 22. Rd1 {[%clk
0:07:21.5]} 22... Ne4 {[%clk 0:04:02.4]} 23. Nxe4 {[%clk 0:07:12.3]} 23... dxe4
{[%clk 0:04:02]} 24. Rf1 {[%clk 0:07:04.7]} 24... Qh4 {[%clk 0:03:31.7]} 25. Rg4
{[%clk 0:06:49.9]} 25... Qh5 {[%clk 0:02:55.6]} 26. Rxe4 {[%clk 0:06:26.2]}
26... Rab8 {[%clk 0:02:13.1]} 27. Qg3 {[%clk 0:05:53.3]} 27... f5 {[%clk
0:01:37.2]} 28. Re7 {[%clk 0:05:26.2]} 28... Qg5 {[%clk 0:01:22.5]} 29. Qe5
{[%clk 0:04:35.9]} 29... Qf6 {[%clk 0:00:43.1]} 30. Qc7 {[%clk 0:04:15.6]} 30...
Rfc8 {[%clk 0:00:21.8]} 31. Qd7 {[%clk 0:03:52.5]} 31... Rd8 {[%clk 0:00:22.9]}
32. Qc7 {[%clk 0:03:19.2]} 32... Rdc8 {[%clk 0:00:24.1]} 33. Qe5 {[%clk
0:03:09.7]} 33... Qxe5 {[%clk 0:00:24]} 34. Rxe5 {[%clk 0:03:08.1]} 34... g6
{[%clk 0:00:22.5]} 35. g4 {[%clk 0:02:18.9]} 35... Rf8 {[%clk 0:00:14.6]} 36.
gxf5 {[%clk 0:02:16]} 36... Rxf5 {[%clk 0:00:10.3]} 37. Rexf5 {[%clk 0:02:15.2]}
37... gxf5 {[%clk 0:00:10.8]} 38. Rxf5 {[%clk 0:02:16]} 38... Re8 {[%clk
0:00:10.7]} 39. Kf2 {[%clk 0:02:13.3]} 39... Kg7 {[%clk 0:00:10.3]} 40. Kf3
{[%clk 0:02:10.6]} 40... Kg6 {[%clk 0:00:08.2]} 41. Kf4 {[%clk 0:02:08.6]} 41...
Rxe3 {[%clk 0:00:04.1]} 42. Kxe3 {[%clk 0:02:03.9]} 42... Kxf5 {[%clk
0:00:05.9]} 43. Kf3 {[%clk 0:01:55.7]} 43... h5 {[%clk 0:00:07.8]} 44. h4 {[%clk
0:01:56.7]} 44... Ke6 {[%clk 0:00:07.8]} 45. Ke4 {[%clk 0:01:57.9]} 45... Kf6
{[%clk 0:00:07.8]} 46. Kf4 {[%clk 0:01:59.4]} 1-0

[Event "Sempre più Rapidamente"]
[Site "Chess.com"]
[Date "2020.04.12"]
[Round "4"]
[White "mr6701"]
[Black "sirmale49"]
[Result "1-0"]
[WhiteElo "1561"]
[BlackElo "1407"]
[TimeControl "720+3"]
[EndTime "7:22:23 PDT"]
[Termination "mr6701 ha vinto per abbandono"]

1. e4 {[%clk 0:12:02.9]} 1... e5 {[%clk 0:11:56.3]} 2. d4 {[%clk 0:12:04.6]}
2... Nc6 {[%clk 0:11:55]} 3. dxe5 {[%clk 0:12:05.8]} 3... Nxe5 {[%clk
0:11:56.7]} 4. f4 {[%clk 0:12:07.2]} 4... Nc6 {[%clk 0:11:55.4]} 5. Bc4 {[%clk
0:12:09]} 5... Qe7 {[%clk 0:11:49.8]} 6. Nc3 {[%clk 0:12:08.4]} 6... d6 {[%clk
0:11:47.3]} 7. Nf3 {[%clk 0:12:09.4]} 7... h6 {[%clk 0:11:45]} 8. O-O {[%clk
0:12:10.9]} 8... Nf6 {[%clk 0:11:40.8]} 9. e5 {[%clk 0:12:07.7]} 9... dxe5
{[%clk 0:11:26.8]} 10. fxe5 {[%clk 0:12:05.6]} 10... Qc5+ {[%clk 0:11:28.2]} 11.
Kh1 {[%clk 0:12:07.2]} 11... Qxc4 {[%clk 0:11:29.7]} 12. exf6 {[%clk 0:12:09.3]}
12... gxf6 {[%clk 0:11:30.1]} 13. Nd5 {[%clk 0:12:06.9]} 13... Bd6 {[%clk
0:11:18.8]} 14. Qe1+ {[%clk 0:11:58.1]} 14... Kf8 {[%clk 0:11:12.6]} 15. Nxf6
{[%clk 0:11:58.2]} 15... Be6 {[%clk 0:11:02.4]} 16. b3 {[%clk 0:11:59.3]} 16...
Qb5 {[%clk 0:10:15]} 17. Bb2 {[%clk 0:11:59.6]} 17... Be5 {[%clk 0:09:33.5]} 18.
Nxe5 {[%clk 0:11:56.9]} 18... Nxe5 {[%clk 0:09:34.8]} 19. Bxe5 {[%clk
0:11:54.9]} 19... Rg8 {[%clk 0:09:14.5]} 20. Nxg8 {[%clk 0:11:53.6]} 20... Kxg8
{[%clk 0:09:15]} 21. Qg3+ {[%clk 0:11:54]} 21... Kf8 {[%clk 0:09:15.1]} 22. Qg7+
{[%clk 0:11:50.8]} 1-0

[Event "Sempre più Rapidamente"]
[Site "Chess.com"]
[Date "2020.04.12"]
[Round "4"]
[White "ottovolante"]
[Black "crippo"]
[Result "0-1"]
[WhiteElo "993"]
[BlackElo "1558"]
[TimeControl "720+3"]
[EndTime "7:22:29 PDT"]
[Termination "crippo ha vinto per scaccomatto"]

1. e4 {[%clk 0:12:02.9]} 1... e5 {[%clk 0:12:01.9]} 2. Nf3 {[%clk 0:12:02.6]}
2... Nc6 {[%clk 0:12:03]} 3. Bc4 {[%clk 0:12:01]} 3... d6 {[%clk 0:12:04.9]} 4.
d3 {[%clk 0:11:57]} 4... Be7 {[%clk 0:12:05.6]} 5. Nc3 {[%clk 0:11:58.7]} 5...
Nf6 {[%clk 0:12:07.1]} 6. h3 {[%clk 0:11:58.9]} 6... O-O {[%clk 0:12:08.3]} 7.
Nd5 {[%clk 0:12:00.6]} 7... Nxd5 {[%clk 0:12:09.2]} 8. Bxd5 {[%clk 0:12:02.1]}
8... Be6 {[%clk 0:12:09.8]} 9. Bxc6 {[%clk 0:12:02.1]} 9... bxc6 {[%clk
0:12:10.8]} 10. b4 {[%clk 0:12:00.9]} 10... f5 {[%clk 0:12:12]} 11. Bd2 {[%clk
0:11:40.9]} 11... fxe4 {[%clk 0:12:13.6]} 12. dxe4 {[%clk 0:11:42]} 12... Qd7
{[%clk 0:12:07.6]} 13. Qc1 {[%clk 0:11:40.9]} 13... Bc4 {[%clk 0:12:09]} 14. Bg5
{[%clk 0:11:20.3]} 14... Rxf3 {[%clk 0:12:05.1]} 15. gxf3 {[%clk 0:11:18.3]}
15... Rf8 {[%clk 0:12:05.7]} 16. Qe3 {[%clk 0:10:30.8]} 16... d5 {[%clk
0:11:46.7]} 17. Bxe7 {[%clk 0:10:25.5]} 17... Qxe7 {[%clk 0:11:48.2]} 18. a3
{[%clk 0:10:07.7]} 18... d4 {[%clk 0:11:35.9]} 19. Qd2 {[%clk 0:09:58.3]} 19...
Rxf3 {[%clk 0:11:36.7]} 20. O-O-O {[%clk 0:09:58.2]} 20... Rxa3 {[%clk
0:11:35.9]} 21. Kb2 {[%clk 0:09:36]} 21... Rc3 {[%clk 0:11:35.3]} 22. Rhg1
{[%clk 0:09:16.7]} 22... Qxb4+ {[%clk 0:11:35.5]} 23. Kc1 {[%clk 0:09:17.3]}
23... Qa3+ {[%clk 0:11:36.7]} 24. Kb1 {[%clk 0:09:15.7]} 24... Qa2+ {[%clk
0:11:38.4]} 25. Kc1 {[%clk 0:09:14.6]} 25... Qa1# {[%clk 0:11:40.7]} 0-1

[Event "Sempre più Rapidamente"]
[Site "Chess.com"]
[Date "2020.04.12"]
[Round "4"]
[White "lionblu1"]
[Black "Ollarov"]
[Result "0-1"]
[WhiteElo "1461"]
[BlackElo "1875"]
[TimeControl "720+3"]
[EndTime "7:31:22 PDT"]
[Termination "Ollarov ha vinto per abbandono"]

1. d4 {[%clk 0:11:58.9]} 1... Nf6 {[%clk 0:12:01.3]} 2. c4 {[%clk 0:11:59.8]}
2... g6 {[%clk 0:12:03.3]} 3. Nc3 {[%clk 0:12:00.7]} 3... Bg7 {[%clk 0:12:05.4]}
4. e4 {[%clk 0:12:01.9]} 4... O-O {[%clk 0:12:07.2]} 5. Be2 {[%clk 0:12:03.2]}
5... d6 {[%clk 0:12:06.6]} 6. Bg5 {[%clk 0:12:03.7]} 6... h6 {[%clk 0:12:05.6]}
7. Be3 {[%clk 0:12:02.4]} 7... e5 {[%clk 0:12:03.9]} 8. d5 {[%clk 0:11:51.6]}
8... a5 {[%clk 0:11:55.4]} 9. g4 {[%clk 0:11:44.5]} 9... Nh7 {[%clk 0:11:12.1]}
10. Qd2 {[%clk 0:11:33.4]} 10... g5 {[%clk 0:11:07.3]} 11. h4 {[%clk 0:11:30.5]}
11... f6 {[%clk 0:10:58.7]} 12. hxg5 {[%clk 0:11:29.5]} 12... fxg5 {[%clk
0:10:59.5]} 13. a3 {[%clk 0:11:10.3]} 13... Na6 {[%clk 0:10:16.7]} 14. Rb1
{[%clk 0:10:59]} 14... Rf7 {[%clk 0:09:43.7]} 15. b4 {[%clk 0:10:51.9]} 15...
Nf8 {[%clk 0:09:36.4]} 16. c5 {[%clk 0:10:21.6]} 16... axb4 {[%clk 0:09:20.4]}
17. axb4 {[%clk 0:10:16.7]} 17... Ng6 {[%clk 0:09:11.2]} 18. b5 {[%clk
0:09:45.6]} 18... Nxc5 {[%clk 0:09:01.6]} 19. Bxc5 {[%clk 0:09:42]} 19... dxc5
{[%clk 0:09:01.8]} 20. d6 {[%clk 0:08:58.4]} 20... cxd6 {[%clk 0:08:41.7]} 21.
Bc4 {[%clk 0:08:55.3]} 21... Nf4 {[%clk 0:08:34.2]} 22. Bxf7+ {[%clk 0:08:45.8]}
22... Kxf7 {[%clk 0:08:35.8]} 23. Nh3 {[%clk 0:08:38.6]} 23... Bxg4 {[%clk
0:08:32.4]} 24. Nxf4 {[%clk 0:08:32.1]} 24... exf4 {[%clk 0:08:33.4]} 25. Qd5+
{[%clk 0:08:22.2]} 25... Kg6 {[%clk 0:08:29.2]} 26. b6 {[%clk 0:07:48.1]} 26...
Bxc3+ {[%clk 0:08:17.5]} 27. Kf1 {[%clk 0:07:38.1]} 27... Qd7 {[%clk 0:08:07.5]}
28. Rc1 {[%clk 0:07:01.8]} 28... Bh3+ {[%clk 0:07:54.3]} 29. Ke2 {[%clk
0:06:34.1]} 29... Qg4+ {[%clk 0:07:15]} 30. Kd3 {[%clk 0:06:17.6]} 30... Qf3+
{[%clk 0:07:12.8]} 31. Kc4 {[%clk 0:06:03.1]} 31... Ra4+ {[%clk 0:07:09]} 32.
Kb5 {[%clk 0:05:57.7]} 32... Rb4+ {[%clk 0:07:08.2]} 0-1

[Event "Sempre più Rapidamente"]
[Site "Chess.com"]
[Date "2020.04.12"]
[Round "4"]
[White "ferrariand"]
[Black "Delsoldato03"]
[Result "1-0"]
[WhiteElo "1586"]
[BlackElo "1070"]
[TimeControl "720+3"]
[EndTime "7:34:07 PDT"]
[Termination "ferrariand ha vinto per abbandono"]

1. e4 {[%clk 0:12:02.9]} 1... e5 {[%clk 0:11:57.9]} 2. Nf3 {[%clk 0:11:56]} 2...
Nc6 {[%clk 0:11:58.2]} 3. Bb5 {[%clk 0:11:57.1]} 3... a6 {[%clk 0:11:48.6]} 4.
Ba4 {[%clk 0:11:57.4]} 4... Nf6 {[%clk 0:11:49.4]} 5. d3 {[%clk 0:11:58.4]} 5...
d6 {[%clk 0:11:45.5]} 6. c3 {[%clk 0:11:58.5]} 6... b5 {[%clk 0:11:40.2]} 7. Bc2
{[%clk 0:11:59.2]} 7... Be7 {[%clk 0:11:40.4]} 8. h3 {[%clk 0:12:00.1]} 8... O-O
{[%clk 0:11:42.1]} 9. O-O {[%clk 0:12:01.4]} 9... Bb7 {[%clk 0:11:30.8]} 10. Re1
{[%clk 0:12:02.1]} 10... Qd7 {[%clk 0:11:28.1]} 11. Nbd2 {[%clk 0:12:00.3]}
11... h6 {[%clk 0:11:20.2]} 12. Nf1 {[%clk 0:12:01.6]} 12... b4 {[%clk 0:11:08]}
13. Ng3 {[%clk 0:12:01.1]} 13... bxc3 {[%clk 0:10:44.9]} 14. bxc3 {[%clk
0:12:01.9]} 14... Rab8 {[%clk 0:10:26.2]} 15. d4 {[%clk 0:12:02.7]} 15... exd4
{[%clk 0:10:13.2]} 16. cxd4 {[%clk 0:12:00]} 16... Rfe8 {[%clk 0:09:48.7]} 17.
Ba4 {[%clk 0:11:59.8]} 17... Qd8 {[%clk 0:09:15.5]} 18. d5 {[%clk 0:12:01]}
18... Ne5 {[%clk 0:09:04.4]} 19. Bxe8 {[%clk 0:11:59.3]} 19... Qxe8 {[%clk
0:09:05.2]} 20. Nxe5 {[%clk 0:12:00]} 20... dxe5 {[%clk 0:09:05.9]} 21. Qc2
{[%clk 0:11:44.7]} 21... Qd7 {[%clk 0:08:30.8]} 22. Nf5 {[%clk 0:11:42.6]} 22...
Bd6 {[%clk 0:07:59.9]} 23. Qd3 {[%clk 0:11:28]} 23... Qb5 {[%clk 0:07:28.2]} 24.
Qg3 {[%clk 0:11:27]} 24... Bf8 {[%clk 0:07:12.5]} 25. Nxh6+ {[%clk 0:11:24.3]}
25... Kh8 {[%clk 0:07:00.3]} 26. Nxf7+ {[%clk 0:11:22.9]} 26... Kg8 {[%clk
0:07:02.1]} 27. Nxe5 {[%clk 0:11:15.6]} 27... Qe8 {[%clk 0:06:52.7]} 28. Qg6
{[%clk 0:10:46.6]} 28... Bb4 {[%clk 0:06:16.5]} 29. Qxe8+ {[%clk 0:10:43.2]}
29... Rxe8 {[%clk 0:06:17.2]} 30. Nd3 {[%clk 0:10:14.3]} 30... Bxe1 {[%clk
0:06:13.1]} 31. Nxe1 {[%clk 0:10:14.9]} 31... Rxe4 {[%clk 0:06:15.4]} 32. Bg5
{[%clk 0:10:07.8]} 32... Nxd5 {[%clk 0:05:58.3]} 33. Nf3 {[%clk 0:09:58.2]}
33... Nc3 {[%clk 0:05:46.7]} 34. Kf1 {[%clk 0:09:40.2]} 34... Re2 {[%clk
0:05:43.1]} 35. Rc1 {[%clk 0:09:35.5]} 35... Bxf3 {[%clk 0:05:16.9]} 36. gxf3
{[%clk 0:09:34.5]} 36... Nxa2 {[%clk 0:04:49.3]} 37. Rxc7 {[%clk 0:09:27.3]}
37... Re8 {[%clk 0:04:39.3]} 38. Bd2 {[%clk 0:09:19.6]} 38... Ra8 {[%clk
0:04:33.1]} 39. Rc2 {[%clk 0:09:19.9]} 39... Rf8 {[%clk 0:04:19.7]} 40. Kg2
{[%clk 0:09:15]} 40... Nb4 {[%clk 0:04:12.2]} 41. Bxb4 {[%clk 0:09:15.9]} 41...
Rb8 {[%clk 0:04:13.4]} 42. Ba3 {[%clk 0:09:07.8]} 42... a5 {[%clk 0:04:13.9]}
43. Rb2 {[%clk 0:09:06.4]} 43... Rxb2 {[%clk 0:03:55.6]} 44. Bxb2 {[%clk
0:09:06.5]} 44... a4 {[%clk 0:03:56.9]} 45. Kg3 {[%clk 0:09:04.5]} 45... Kf7
{[%clk 0:03:54.8]} 46. Kf4 {[%clk 0:09:05.7]} 46... g6 {[%clk 0:03:53.9]} 47.
Ke4 {[%clk 0:09:06.4]} 47... Ke6 {[%clk 0:03:54.4]} 48. f4 {[%clk 0:09:01.6]}
48... Kf7 {[%clk 0:03:51.1]} 49. h4 {[%clk 0:09:02.4]} 49... Ke6 {[%clk
0:03:50.6]} 50. f3 {[%clk 0:08:59.2]} 50... Kf7 {[%clk 0:03:47.8]} 51. f5 {[%clk
0:09:00]} 51... gxf5+ {[%clk 0:03:31.9]} 52. Kxf5 {[%clk 0:09:00.8]} 1-0

[Event "Sempre più Rapidamente"]
[Site "Chess.com"]
[Date "2020.04.12"]
[Round "4"]
[White "SanSecondoPR"]
[Black "MartinoMontepietra"]
[Result "1-0"]
[WhiteElo "1335"]
[BlackElo "755"]
[TimeControl "720+3"]
[EndTime "7:37:14 PDT"]
[Termination "SanSecondoPR ha vinto per scaccomatto"]

1. e4 {[%clk 0:12:00.6]} 1... g6 {[%clk 0:11:56.2]} 2. d4 {[%clk 0:11:58.5]}
2... Nf6 {[%clk 0:11:56.7]} 3. e5 {[%clk 0:11:59.4]} 3... Ne4 {[%clk 0:11:49.6]}
4. Qd3 {[%clk 0:11:52.9]} 4... Ng5 {[%clk 0:11:35.4]} 5. h4 {[%clk 0:11:46.6]}
5... Ne6 {[%clk 0:11:31.5]} 6. Nc3 {[%clk 0:11:39]} 6... d6 {[%clk 0:11:31]} 7.
d5 {[%clk 0:11:35.8]} 7... Ng7 {[%clk 0:11:28.3]} 8. Nf3 {[%clk 0:11:27.5]} 8...
dxe5 {[%clk 0:11:21.9]} 9. Nxe5 {[%clk 0:11:26.2]} 9... f6 {[%clk 0:11:15.7]}
10. Nf3 {[%clk 0:11:03.4]} 10... c6 {[%clk 0:10:48.2]} 11. Be3 {[%clk
0:11:00.7]} 11... cxd5 {[%clk 0:10:40.8]} 12. Nxd5 {[%clk 0:10:55.1]} 12... e6
{[%clk 0:10:06.5]} 13. Nc3 {[%clk 0:10:17.9]} 13... Qxd3 {[%clk 0:09:52.7]} 14.
Bxd3 {[%clk 0:10:16.9]} 14... f5 {[%clk 0:09:40.2]} 15. Nb5 {[%clk 0:10:14.5]}
15... Bd6 {[%clk 0:07:40.7]} 16. Nxd6+ {[%clk 0:10:07.7]} 16... Kd7 {[%clk
0:07:33.6]} 17. Nxc8 {[%clk 0:10:00.5]} 17... Kxc8 {[%clk 0:07:16.4]} 18. O-O-O
{[%clk 0:09:54.7]} 18... e5 {[%clk 0:07:10.6]} 19. Nxe5 {[%clk 0:09:49.2]} 19...
Re8 {[%clk 0:07:03.7]} 20. Nf7 {[%clk 0:09:42.5]} 20... Rf8 {[%clk 0:06:46.6]}
21. Nd6+ {[%clk 0:09:39.1]} 21... Kd7 {[%clk 0:06:38.1]} 22. Bb5+ {[%clk
0:09:32.7]} 22... Ke7 {[%clk 0:06:20.1]} 23. Bc5 {[%clk 0:09:27.1]} 23... b6
{[%clk 0:06:04.3]} 24. Nxf5+ {[%clk 0:09:20]} 24... Kf7 {[%clk 0:05:43.7]} 25.
Bxf8 {[%clk 0:09:07.2]} 25... Kxf8 {[%clk 0:05:36]} 26. Rd8+ {[%clk 0:08:58.5]}
26... Ne8 {[%clk 0:05:27.8]} 27. Rxe8+ {[%clk 0:08:57.9]} 27... Kf7 {[%clk
0:05:24.5]} 28. Nh6+ {[%clk 0:08:54.5]} 28... Kg7 {[%clk 0:05:13.4]} 29. Ng4
{[%clk 0:08:53.9]} 29... a6 {[%clk 0:05:00.4]} 30. Bc6 {[%clk 0:08:52.6]} 30...
Kf7 {[%clk 0:04:21.6]} 31. Ne5+ {[%clk 0:08:48.1]} 31... Kf6 {[%clk 0:04:13.5]}
32. Bxa8 {[%clk 0:08:47.4]} 32... Nd7 {[%clk 0:03:49.9]} 33. Nxd7+ {[%clk
0:08:44.1]} 33... Kf7 {[%clk 0:03:42.4]} 34. Re3 {[%clk 0:08:40.7]} 34... h6
{[%clk 0:03:35.9]} 35. Nxb6 {[%clk 0:08:38.9]} 35... g5 {[%clk 0:03:31.6]} 36.
hxg5 {[%clk 0:08:38.3]} 36... hxg5 {[%clk 0:03:30]} 37. Rh6 {[%clk 0:08:37.3]}
37... a5 {[%clk 0:03:23.2]} 38. Ree6 {[%clk 0:08:35.7]} 38... a4 {[%clk
0:03:12.7]} 39. Nxa4 {[%clk 0:08:34.7]} 39... g4 {[%clk 0:03:09.6]} 40. Be4
{[%clk 0:08:27.6]} 40... Kg7 {[%clk 0:02:52.8]} 41. c4 {[%clk 0:08:27.2]} 41...
g3 {[%clk 0:00:57]} 42. fxg3 {[%clk 0:08:24.2]} 42... Kf7 {[%clk 0:00:52.3]} 43.
Bd5 {[%clk 0:08:21.1]} 43... Kg7 {[%clk 0:00:52.1]} 44. Rhg6+ {[%clk 0:08:13.7]}
44... Kh7 {[%clk 0:00:46.8]} 45. Rg4 {[%clk 0:08:06.5]} 45... Kh8 {[%clk
0:00:33]} 46. Rh6# {[%clk 0:08:05]} 1-0

[Event "Sempre più Rapidamente"]
[Site "Chess.com"]
[Date "2020.04.12"]
[Round "4"]
[White "Carbon"]
[Black "GuGe14"]
[Result "1/2-1/2"]
[WhiteElo "1823"]
[BlackElo "1853"]
[TimeControl "720+3"]
[EndTime "7:41:05 PDT"]
[Termination "Partita patta per ripetizione di mosse"]

1. e4 {[%clk 0:12:01.5]} 1... c6 {[%clk 0:12:02]} 2. d3 {[%clk 0:12:01.1]} 2...
d5 {[%clk 0:12:03]} 3. Nd2 {[%clk 0:12:02.8]} 3... e5 {[%clk 0:11:42.9]} 4. Ngf3
{[%clk 0:12:02.5]} 4... Bd6 {[%clk 0:11:21]} 5. g3 {[%clk 0:12:02.8]} 5... Nf6
{[%clk 0:11:14.9]} 6. Bg2 {[%clk 0:12:02.3]} 6... O-O {[%clk 0:11:07.1]} 7. O-O
{[%clk 0:12:02.8]} 7... Re8 {[%clk 0:10:45.1]} 8. h3 {[%clk 0:12:00]} 8... Nbd7
{[%clk 0:09:53.6]} 9. Re1 {[%clk 0:11:19.1]} 9... d4 {[%clk 0:09:39]} 10. Nc4
{[%clk 0:11:14.7]} 10... Bc7 {[%clk 0:08:40.2]} 11. a4 {[%clk 0:10:59.6]} 11...
b5 {[%clk 0:07:55.9]} 12. axb5 {[%clk 0:10:54.7]} 12... cxb5 {[%clk 0:07:58.8]}
13. Ncd2 {[%clk 0:09:46]} 13... Nc5 {[%clk 0:07:08.9]} 14. b3 {[%clk 0:09:34]}
14... Bd7 {[%clk 0:06:44.9]} 15. Nh4 {[%clk 0:09:09.1]} 15... g6 {[%clk
0:06:21.6]} 16. Nb1 {[%clk 0:08:56.4]} 16... Qc8 {[%clk 0:06:04.5]} 17. Kh2
{[%clk 0:08:46.8]} 17... a5 {[%clk 0:05:41.9]} 18. Bg5 {[%clk 0:07:55.2]} 18...
Nh5 {[%clk 0:05:37.6]} 19. Bf3 {[%clk 0:07:10.6]} 19... Ng7 {[%clk 0:05:38.4]}
20. Bg4 {[%clk 0:06:47.9]} 20... Bxg4 {[%clk 0:05:23]} 21. Qxg4 {[%clk 0:06:44]}
21... Qxg4 {[%clk 0:05:24.7]} 22. hxg4 {[%clk 0:06:44.4]} 22... Bd8 {[%clk
0:04:40.6]} 23. Bxd8 {[%clk 0:06:16]} 23... Rexd8 {[%clk 0:04:43.5]} 24. Na3
{[%clk 0:05:53.1]} 24... Rab8 {[%clk 0:04:18.2]} 25. Nf3 {[%clk 0:05:44.3]}
25... f6 {[%clk 0:04:19.7]} 26. Kg2 {[%clk 0:05:41.9]} 26... Nge6 {[%clk
0:03:59.9]} 27. Reb1 {[%clk 0:04:14.6]} 27... Rdc8 {[%clk 0:03:41.9]} 28. b4
{[%clk 0:04:03.9]} 28... Na4 {[%clk 0:03:05.9]} 29. bxa5 {[%clk 0:03:58.5]}
29... Nc3 {[%clk 0:02:58.3]} 30. Rb3 {[%clk 0:02:26.8]} 30... Nc5 {[%clk
0:02:49.8]} 31. Rb4 {[%clk 0:02:21.9]} 31... N5a4 {[%clk 0:02:03.7]} 32. g5
{[%clk 0:02:13.5]} 32... Kf7 {[%clk 0:01:59]} 33. gxf6 {[%clk 0:02:11.5]} 33...
Kxf6 {[%clk 0:02:00.5]} 34. Nd2 {[%clk 0:02:04.7]} 34... Kg5 {[%clk 0:01:26.9]}
35. Nf3+ {[%clk 0:02:02.1]} 35... Kf6 {[%clk 0:01:28.4]} 36. Nd2 {[%clk
0:02:03.7]} 36... Kg5 {[%clk 0:01:30.1]} 37. Nf3+ {[%clk 0:02:05.2]} 37... Kf6
{[%clk 0:01:32.2]} 1/2-1/2